fUST/lending_fUST_20240906
["ID","MTS","AMOUNT","RATE_DAILY","PERIOD"]
[337361652,1725627038191,-1000.0,0.00018968,2]
[337361654,1725627038201,-1000.0,0.00018978,2]
[337361656,1725627038211,-790.74752999,0.00018982,2]
[337361659,1725627038223,-5200.33891229,0.00018982,2]
[337361661,1725627038233,-1000.0,0.00019013,2]
[337361663,1725627038242,-5653.1391587,0.00019014,2]
[337361724,1725627040051,-337.94728358,0.00019014,2]
[337361725,1725627040062,-487.02,0.00019025,3]
[337361727,1725627040078,-1000.0,0.0001903,2]
[337361728,1725627040087,-35409.64243486,0.00019035,2]
[337361729,1725627040099,-32143.89969084,0.00019035,2]
[337361730,1725627040109,-19608.3955117,0.00019035,2]
[337361731,1725627040118,-162.34,0.00019035,3]
[337361732,1725627040127,-998.39697225,0.00019044,2]
[337361733,1725627040136,-886.53104571,0.00019045,2]
[337361734,1725627040161,-107655.42963477,0.00019045,2]
[337361735,1725627040170,-5991.08644228,0.00019046,2]
[337361736,1725627040179,-1502.56847155,0.0001905,2]
[337361737,1725627040189,-67553.5421257,0.00019058,2]
[337361738,1725627040198,-863.78957468,0.00019058,2]
[337361739,1725627040208,-1000.0,0.00019058,2]
[337361740,1725627040217,-67553.5421257,0.00019058,2]
[337361741,1725627040227,-43545.84097731,0.00019068,2]
[337361742,1725627040238,-1972.26760146,0.00019068,2]
[337361749,1725627042740,-1260.10457278,0.00019068,2]
[337361750,1725627042752,-5279.78828022,0.00019068,2]
[337361751,1725627042762,-5991.08644228,0.00019078,2]
[337361752,1725627042771,-1000.0,0.000191,19]
[337361753,1725627042781,-513.7918856,0.000191,2]
[337361754,1725627042791,-208.135659,0.000191,2]
[337361755,1725627042800,-306.0,0.000191,2]
[337361756,1725627042809,-416.2122698,0.000191,2]
[337361757,1725627042821,-309.3082166,0.000191,2]
[337361758,1725627042832,-165.133202,0.00019136,2]
[337361759,1725627042841,-500.0,0.00019136,2]
[337361760,1725627042852,-500.0,0.00019136,2]
[337361761,1725627042864,-500.0,0.00019136,2]
[337361762,1725627042873,-254.2168148,0.00019136,2]
[337361763,1725627042882,-500.0,0.00019136,2]
[337361764,1725627042892,-386.27171767,0.00019136,2]
[337361765,1725627042901,-500.0,0.00019136,2]
[337361766,1725627042912,-500.0,0.00019136,2]
[337361767,1725627042921,-500.0,0.00019136,2]
[337361768,1725627042932,-500.0,0.00019136,2]
[337361769,1725627042941,-291.92714234,0.00019136,2]
[337361770,1725627042950,-499.99999999,0.00019136,2]
[337361771,1725627042960,-135107.084251,0.00019137,2]
[337361772,1725627042970,-19608.3955117,0.00019137,2]
[337361773,1725627042980,-19608.3955117,0.00019158,2]
[337361774,1725627042992,-1000.0,0.00019172,2]
[337361775,1725627043005,-500.0,0.00019173,2]
[337361776,1725627043015,-159.20067027,0.00019173,2]
[337361777,1725627043025,-500.0,0.00019173,2]
[337361778,1725627043036,-500.0,0.00019173,2]
[337361779,1725627043045,-501.11776053,0.00019173,2]
[337361780,1725627043054,-158.74754375,0.00019173,2]
[337361781,1725627043064,-1000.0,0.00019173,2]
[337361782,1725627043080,-205.40553198,0.00019177,2]
[337361783,1725627043090,-987.97758686,0.00019177,2]
[337361784,1725627043099,-500.0,0.00019177,2]
[337361785,1725627043108,-203.73327953,0.00019177,2]
[337361786,1725627043117,-178.54718144,0.00019177,2]
[337361787,1725627043126,-500.0,0.00019177,2]
[337361788,1725627043135,-178.40905935,0.00019177,2]
[337361789,1725627043145,-500.0,0.00019177,2]
[337361790,1725627043154,-500.0,0.00019177,2]
[337361791,1725627043163,-500.0,0.00019177,2]
[337361792,1725627043172,-225.00082249,0.00019177,2]
[337361793,1725627043182,-500.0,0.00019177,2]
[337361794,1725627043192,-500.0,0.00019177,2]
[337361795,1725627043201,-433.55584467,0.00019177,2]
[337361796,1725627043210,-500.0,0.00019177,2]
[337361797,1725627043220,-356.87492816,0.00019177,2]
[337361798,1725627043229,-500.0,0.00019177,2]
[337361799,1725627043240,-500.0,0.00019177,2]
[337361800,1725627043249,-500.0,0.00019177,2]
[337361801,1725627043258,-500.0,0.00019177,2]
[337361802,1725627043267,-500.0,0.00019177,2]
[337361803,1725627043277,-500.0,0.00019177,2]
[337361804,1725627043286,-500.0,0.00019177,2]
[337361805,1725627043295,-500.0,0.00019177,2]
[337361806,1725627043304,-500.0,0.00019177,2]
[337361807,1725627043313,-500.0,0.00019177,2]
[337361808,1725627043326,-382.14320964,0.00019177,2]
[337361809,1725627043336,-500.0,0.00019177,2]
[337361810,1725627043347,-500.0,0.00019178,2]
[337361811,1725627043357,-500.0,0.00019178,2]
[337361812,1725627043366,-511.63030124,0.00019178,2]
[337361813,1725627043375,-500.0,0.00019178,2]
[337361814,1725627043385,-500.0,0.00019178,2]
[337361815,1725627043394,-500.0,0.00019178,2]
[337361816,1725627043403,-500.0,0.00019178,2]
[337361817,1725627043412,-500.0,0.00019178,2]
[337361818,1725627043421,-500.0,0.00019178,2]
[337361819,1725627043430,-500.0,0.00019178,2]
[337361820,1725627043440,-500.0,0.00019178,2]
[337361821,1725627043449,-584.82228009,0.00019178,2]
[337361822,1725627043458,-500.0,0.00019178,2]
[337361823,1725627043467,-500.0,0.00019178,2]
[337361824,1725627043476,-500.0,0.00019178,2]
[337361825,1725627043486,-500.0,0.00019178,2]
[337361826,1725627043495,-646.05,0.00019178,2]
[337361827,1725627043504,-500.0,0.00019178,2]
[337361828,1725627043513,-505.26356632,0.00019178,2]
[337361829,1725627043522,-500.0,0.00019178,2]
[337361830,1725627043531,-500.0,0.00019178,2]
[337361831,1725627043541,-500.0,0.00019178,2]
[337361832,1725627043550,-500.0,0.00019178,2]
[337361833,1725627043559,-500.0,0.00019178,2]
[337361834,1725627043572,-500.0,0.00019178,2]
[337361835,1725627043581,-500.0,0.00019178,2]
[337361836,1725627043590,-500.0,0.00019178,2]
[337361837,1725627043598,-500.0,0.00019178,2]
[337361838,1725627043608,-500.0,0.00019178,2]
[337361839,1725627043616,-500.0,0.00019178,2]
[337361840,1725627043626,-572.48,0.00019178,2]
[337361841,1725627043635,-500.0,0.00019178,2]
[337361842,1725627043644,-500.0,0.00019178,2]
[337361843,1725627043653,-500.0,0.00019178,2]
[337361844,1725627043662,-500.0,0.00019178,2]
[337361845,1725627043671,-500.0,0.00019178,2]
[337361846,1725627043681,-283.48305676,0.00019178,2]
[337361847,1725627043690,-500.0,0.00019178,2]
[337361848,1725627043699,-500.0,0.00019178,2]
[337361849,1725627043708,-1056.89,0.00019178,2]
[337361850,1725627043717,-500.0,0.00019178,2]
[337361851,1725627043727,-500.0,0.00019178,2]
[337361852,1725627043736,-500.0,0.00019178,2]
[337361853,1725627043747,-500.0,0.00019178,2]
[337361854,1725627043756,-500.0,0.00019178,2]
[337361855,1725627043765,-500.0,0.00019178,2]
[337361856,1725627043774,-500.0,0.00019178,2]
[337361857,1725627043784,-519.49823112,0.00019178,2]
[337361858,1725627043793,-500.0,0.00019178,2]
[337361859,1725627043802,-502.48928455,0.00019178,2]
[337361860,1725627043811,-500.0,0.00019178,2]
[337361861,1725627043821,-501.35037179,0.00019178,2]
[337361862,1725627043830,-500.0,0.00019178,2]
[337361863,1725627043840,-500.0,0.00019178,2]
[337361864,1725627043849,-500.0,0.00019178,2]
[337361865,1725627043858,-151.0,0.00019178,2]
[337361866,1725627043869,-500.0,0.00019178,2]
[337361867,1725627043879,-500.0,0.00019178,2]
[337361868,1725627043889,-510.32318062,0.00019178,2]
[337361869,1725627043898,-500.0,0.00019178,2]
[337361870,1725627043908,-2794.07,0.00019178,2]
[337361871,1725627043917,-954.9,0.00019178,2]
[337361872,1725627043926,-1511.56,0.00019178,2]
[337361873,1725627043936,-500.0,0.00019178,2]
[337361874,1725627043947,-547.29194514,0.00019178,2]
[337361875,1725627043958,-500.0,0.00019178,2]
[337361876,1725627043968,-500.0,0.00019178,2]
[337361877,1725627043981,-500.0,0.00019178,2]
[337361878,1725627043992,-500.0,0.00019178,2]
[337361879,1725627044004,-500.0,0.00019178,2]
[337361880,1725627044016,-500.0,0.00019178,2]
[337361881,1725627044027,-500.0,0.00019178,2]
[337361882,1725627044040,-500.0,0.00019178,2]
[337361883,1725627044050,-500.0,0.00019178,2]
[337361884,1725627044059,-500.0,0.00019178,2]
[337361885,1725627044072,-500.0,0.00019178,2]
[337361886,1725627044083,-590.59476938,0.00019178,2]
[337361887,1725627044093,-500.0,0.00019178,2]
[337361888,1725627044103,-353.05120174,0.00019178,2]
[337361889,1725627044113,-500.0,0.00019178,2]
[337361890,1725627044123,-500.0,0.00019178,2]
[337361891,1725627044133,-500.0,0.00019178,2]
[337361892,1725627044361,-151.0,0.00019178,2]
[337361893,1725627044371,-352.90321033,0.00019178,2]
[337361894,1725627044381,-638.53757943,0.00019178,2]
[337361895,1725627044391,-500.0,0.00019178,2]
[337361896,1725627044401,-500.0,0.00019178,2]
[337361897,1725627044412,-500.0,0.00019178,2]
[337361898,1725627044422,-500.0,0.00019178,2]
[337361899,1725627044432,-500.0,0.00019178,2]
[337361900,1725627044442,-500.0,0.00019178,2]
[337361901,1725627044452,-500.0,0.00019178,2]
[337361902,1725627044463,-500.0,0.00019178,2]
[337361903,1725627044473,-500.0,0.00019178,2]
[337361904,1725627044483,-500.0,0.00019178,2]
[337361905,1725627044492,-500.0,0.00019178,2]
[337361906,1725627044502,-553.89,0.00019178,2]
[337361907,1725627044512,-500.0,0.00019178,2]
[337361908,1725627044521,-500.0,0.00019178,2]
[337361909,1725627044531,-500.0,0.00019178,2]
[337361910,1725627044540,-500.0,0.00019178,2]
[337361911,1725627044550,-500.0,0.00019178,2]
[337361912,1725627044561,-500.0,0.00019178,2]
[337361913,1725627044571,-500.0,0.00019178,2]
[337361914,1725627044581,-500.0,0.00019178,2]
[337361915,1725627044593,-500.0,0.00019178,2]
[337361916,1725627044603,-500.0,0.00019178,2]
[337361917,1725627044612,-500.0,0.00019178,2]
[337361918,1725627044623,-500.0,0.00019178,2]
[337361919,1725627044634,-500.0,0.00019178,2]
[337361920,1725627044643,-500.0,0.00019178,2]
[337361921,1725627044654,-499.58140778,0.00019178,2]
[337361922,1725627044664,-500.0,0.00019178,2]
[337361923,1725627044673,-456.38522281,0.00019178,2]
[337361924,1725627044682,-500.0,0.00019178,2]
[337361925,1725627044693,-504.969156,0.00019178,2]
[337361926,1725627044702,-500.0,0.00019178,2]
[337361927,1725627044712,-500.0,0.00019178,2]
[337361928,1725627044721,-500.0,0.00019178,2]
[337361929,1725627044731,-553.07,0.00019178,2]
[337361930,1725627044740,-500.0,0.00019178,2]
[337361931,1725627044750,-502.68727343,0.00019178,2]
[337361932,1725627044761,-1103.48,0.00019178,2]
[337361933,1725627044772,-500.0,0.00019178,2]
[337361934,1725627044781,-500.0,0.00019178,2]
[337361935,1725627044792,-1027.88,0.00019178,2]
[337361936,1725627044801,-500.0,0.00019178,2]
[337361937,1725627044811,-680.26,0.00019178,2]
[337361938,1725627044820,-500.0,0.00019178,2]
[337361939,1725627044830,-500.0,0.00019178,2]
[337361940,1725627044840,-500.0,0.00019178,2]
[337361941,1725627044849,-500.0,0.00019178,2]
[337361942,1725627044859,-500.0,0.00019178,2]
[337361943,1725627044869,-500.0,0.00019178,2]
[337361944,1725627044879,-500.0,0.00019178,2]
[337361945,1725627044889,-500.0,0.00019178,2]
[337361946,1725627044899,-500.0,0.00019178,2]
[337361947,1725627044911,-545.38,0.00019178,2]
[337361948,1725627044920,-525.60492216,0.00019178,2]
[337361949,1725627044929,-500.0,0.00019178,2]
[337361950,1725627044939,-500.0,0.00019178,2]
[337361951,1725627044948,-500.0,0.00019178,2]
[337361952,1725627044958,-500.0,0.00019178,2]
[337361953,1725627044967,-500.0,0.00019178,2]
[337361954,1725627044976,-500.0,0.00019178,2]
[337361955,1725627044986,-500.0,0.00019178,2]
[337361956,1725627044995,-500.0,0.00019178,2]
[337361957,1725627045006,-1022.1,0.00019178,2]
[337361958,1725627045016,-500.0,0.00019178,2]
[337361959,1725627045025,-500.0,0.00019178,2]
[337361960,1725627045035,-899.88,0.00019178,2]
[337361961,1725627045045,-500.0,0.00019178,2]
[337361962,1725627045054,-502.047019,0.00019178,2]
[337361963,1725627045063,-798.38,0.00019178,2]
[337361964,1725627045077,-500.0,0.00019178,2]
[337361965,1725627045087,-916.39,0.00019178,2]
[337361966,1725627045096,-500.0,0.00019178,2]
[337361967,1725627045106,-500.0,0.00019178,2]
[337361968,1725627045117,-151.0,0.00019178,2]
[337361969,1725627045127,-535.46731851,0.00019178,2]
[337361970,1725627045140,-500.0,0.00019178,2]
[337361971,1725627045149,-194.88567698,0.00019178,2]
[337361972,1725627045159,-500.0,0.00019178,2]
[337361973,1725627045168,-500.0,0.00019178,2]
[337361974,1725627045178,-500.0,0.00019178,2]
[337361975,1725627045188,-577.51,0.00019178,2]
[337361976,1725627045198,-500.0,0.00019178,2]
[337361977,1725627045208,-500.0,0.00019178,2]
[337361978,1725627045218,-500.0,0.00019178,2]
[337361979,1725627045227,-500.0,0.00019178,2]
[337361980,1725627045237,-500.0,0.00019178,2]
[337361981,1725627045246,-500.0,0.00019178,2]
[337361982,1725627045256,-500.0,0.00019178,2]
[337361983,1725627045265,-500.0,0.00019178,2]
[337361984,1725627045275,-500.0,0.00019178,2]
[337361985,1725627045284,-500.0,0.00019178,2]
[337361987,1725627045294,-500.0,0.00019178,2]
[337361989,1725627045303,-500.0,0.00019178,2]
[337361991,1725627045313,-500.0,0.00019178,2]
[337361992,1725627045322,-500.0,0.00019178,2]
[337361993,1725627045331,-500.0,0.00019178,2]
[337361994,1725627045341,-500.0,0.00019178,2]
[337361996,1725627045350,-500.0,0.00019178,2]
[337361998,1725627045359,-500.0,0.00019178,2]
[337361999,1725627045369,-500.0,0.00019178,2]
[337362000,1725627045378,-1049.97,0.00019178,2]
[337362001,1725627045387,-500.0,0.00019178,2]
[337362002,1725627045397,-500.0,0.00019178,2]
[337362003,1725627045406,-613.37,0.00019178,2]
[337362004,1725627045415,-500.0,0.00019178,2]
[337362005,1725627045425,-500.0,0.00019178,2]
[337362006,1725627045435,-1766.73,0.00019178,2]
[337362007,1725627045445,-500.0,0.00019178,2]
[337362008,1725627045454,-500.0,0.00019178,2]
[337362009,1725627045465,-500.0,0.00019178,2]
[337362010,1725627045475,-500.0,0.00019178,2]
[337362011,1725627045483,-500.0,0.00019178,2]
[337362012,1725627045492,-745.34,0.00019178,2]
[337362013,1725627045502,-500.0,0.00019178,2]
[337362014,1725627045512,-500.0,0.00019178,2]
[337362015,1725627045524,-500.0,0.00019178,2]
[337362016,1725627045533,-500.0,0.00019178,2]
[337362017,1725627045544,-500.0,0.00019178,2]
[337362018,1725627045555,-500.0,0.00019178,2]
[337362019,1725627045565,-151.0,0.00019178,2]
[337362020,1725627045574,-500.0,0.00019178,2]
[337362021,1725627045583,-500.0,0.00019178,2]
[337362022,1725627045594,-500.0,0.00019178,2]
[337362023,1725627045603,-202.7237599,0.00019178,2]
[337362024,1725627045612,-151.0,0.00019178,2]
[337362025,1725627045621,-500.0,0.00019178,2]
[337362026,1725627045630,-500.0,0.00019178,2]
[337362027,1725627045639,-513.18518072,0.00019178,2]
[337362028,1725627045649,-500.0,0.00019178,2]
[337362029,1725627045661,-500.0,0.00019178,2]
[337362030,1725627045671,-500.0,0.00019178,2]
[337362031,1725627045680,-500.0,0.00019178,2]
[337362032,1725627045689,-500.0,0.00019178,2]
[337362033,1725627045700,-500.0,0.00019178,2]
[337362034,1725627045710,-500.0,0.00019178,2]
[337362035,1725627045719,-500.0,0.00019178,2]
[337362036,1725627045729,-500.0,0.00019178,2]
[337362037,1725627045738,-500.0,0.00019178,2]
[337362038,1725627045746,-669.13,0.00019178,2]
[337362039,1725627045755,-852.66,0.00019178,2]
[337362040,1725627045765,-500.0,0.00019178,2]
[337362041,1725627045773,-500.0,0.00019178,2]
[337362042,1725627045782,-370.97468663,0.00019178,2]
[337362043,1725627045791,-500.0,0.00019178,2]
[337362044,1725627045801,-500.0,0.00019178,2]
[337362045,1725627045810,-500.0,0.00019178,2]
[337362046,1725627045819,-500.0,0.00019178,2]
[337362047,1725627045828,-500.0,0.00019178,2]
[337362048,1725627045837,-1034.73,0.00019178,2]
[337362049,1725627045846,-500.0,0.00019178,2]
[337362050,1725627045857,-500.0,0.00019178,2]
[337362051,1725627045866,-756.98,0.00019178,2]
[337362052,1725627045876,-500.0,0.00019178,2]
[337362053,1725627045885,-500.0,0.00019178,2]
[337362054,1725627045894,-197.69849944,0.00019178,2]
[337362055,1725627045904,-500.0,0.00019178,2]
[337362056,1725627045913,-247.59487132,0.00019178,2]
[337362057,1725627045943,-351.89512868,0.00019178,2]
[337362058,1725627045952,-466.67487132,0.00019178,2]
[337362059,1725627045977,-33.32512868,0.00019178,2]
[337362060,1725627045986,-385.87667754,0.00019178,2]
[337362104,1725627793802,1002.0,0.00019147,120]
[337362105,1725627794269,1002.0,0.00019137,120]
[337362106,1725627794973,1002.0,0.00019127,120]
[337362107,1725627795252,1002.0,0.0001961,120]
[337362108,1725627795718,1002.0,0.000196,120]
[337362109,1725627796236,1002.0,0.0001959,120]
[337362110,1725627797056,1002.0,0.0002099,120]
[337362111,1725627797888,1002.0,0.0002098,120]
[337362112,1725627798085,1002.0,0.0002245,120]
[337362113,1725627798555,1010.85,0.0002244,120]
[337362160,1725628232054,-1249.5314538,0.00018973,2]
[337362162,1725628232063,-1000.0,0.00019039,2]
[337362164,1725628232072,-1198.21728848,0.0001904,2]
[337362165,1725628232082,-863.78957468,0.00019047,2]
[337362167,1725628232091,-1198.21728845,0.00019048,2]
[337362168,1725628232100,-1198.21728845,0.00019057,2]
[337362170,1725628232110,-1198.21728845,0.00019065,2]
[337362172,1725628232119,-300.0,0.00019067,2]
[337362173,1725628232128,-45662.06738999,0.00019068,2]
[337362208,1725628238109,-1229.05515344,0.00019068,2]
[337362210,1725628238118,-1174.59494433,0.00019073,2]
[337362212,1725628238219,-23.62234412,0.00019073,2]
[337362213,1725628238233,-1000.0,0.000191,19]
[337362214,1725628238242,-418.7473312,0.000191,2]
[337362215,1725628238251,-306.0,0.000191,2]
[337362216,1725628238261,-153.0,0.000191,2]
[337362217,1725628238271,-153.0,0.000191,2]
[337362218,1725628238280,-208.135659,0.000191,2]
[337362219,1725628238289,-153.0,0.000191,2]
[337362220,1725628238298,-153.0,0.000191,2]
[337362221,1725628238308,-153.0,0.000191,2]
[337362222,1725628238317,-153.0,0.000191,2]
[337362223,1725628238327,-153.0,0.000191,2]
[337362224,1725628238340,-208.135659,0.000191,2]
[337362225,1725628238349,-153.0,0.000191,2]
[337362226,1725628238358,-153.0,0.000191,2]
[337362227,1725628238368,-324.68,0.0001912,3]
[337362228,1725628238378,-23476.29800279,0.0001913,2]
[337362235,1725628240295,-357.82351584,0.0001903,2]
[337362237,1725628240304,-187652.54620138,0.0001913,2]
[337362254,1725628242941,-13.99342288,0.0001913,2]
[337362263,1725628246181,-1406.89,0.0001913,2]
[337362264,1725628246193,-4255.070369,0.0001913,2]
[337362265,1725628246204,-389.29481008,0.0001913,2]
[337362266,1725628246216,-1378.92675256,0.0001913,2]
[337362267,1725628246227,-461.81211323,0.0001913,2]
[337362268,1725628246240,-333.3986771,0.0001913,2]
[337362269,1725628246253,-2690.20424094,0.0001913,2]
[337362279,1725628753499,3697.9,0.00027,120]
[337362317,1725629317617,198.0,0.00018,10]
[337362318,1725629320625,13362.27966002,0.00014,2]
[337362319,1725629320857,500.0,0.00027,120]
[337362395,1725629435338,-293.56680005,0.00017845,2]
[337362397,1725629435351,-6.43319995,0.00017845,2]
[337362399,1725629435363,-300.0,0.00017845,2]
[337362401,1725629435373,-489.26209852,0.00017846,2]
[337362403,1725629435384,-636.53625817,0.00017846,2]
[337362405,1725629435396,-19442.16419781,0.00017846,2]
[337362407,1725629435415,-150.112233,0.000184,2]
[337362409,1725629435425,-125.06278378,0.000185,2]
[337362439,1725629438274,-25.04944922,0.000185,2]
[337362440,1725629438284,-150.112233,0.000186,2]
[337362441,1725629438293,-150.112233,0.000188,2]
[337362442,1725629438303,-150.112233,0.000189,2]
[337362443,1725629438313,-1093.34002211,0.0001891,2]
[337362444,1725629438322,-1302.24699138,0.00018986,2]
[337362445,1725629438332,-150.112233,0.00019,2]
[337362446,1725629438341,-119654.15872892,0.00019,2]
[337362447,1725629438355,-19846.11123009,0.00019,2]
[337362450,1725629440379,-657.14970041,0.00019,2]
[337362451,1725629440450,-138343.66227758,0.00019,2]
[337362452,1725629440460,-6263.79301091,0.00019,2]
[337362453,1725629440471,-43045.09091289,0.0001905,2]
[337362483,1725630278251,9286.0,0.00017,2]
[337362542,1725630632329,-300.0,0.00017992,2]
[337362543,1725630632339,-300.0,0.00017992,2]
[337362544,1725630632356,-669.41,0.00017993,2]
[337362554,1725630638463,-24220.59,0.00017993,2]
[337362555,1725630638473,-150.0,0.0001852,2]
[337362556,1725630638483,-1000.0,0.00018874,2]
[337362557,1725630638493,-1000.0,0.00018876,2]
[337362558,1725630638503,-1000.0,0.0001888,2]
[337362559,1725630638512,-1000.0,0.00018889,2]
[337362560,1725630638521,-1000.0,0.0001889,2]
[337362561,1725630638531,-1000.0,0.00018896,2]
[337362562,1725630638541,-992.94360324,0.00018903,2]
[337362563,1725630638550,-1000.0,0.00018905,2]
[337362564,1725630638561,-1000.0,0.00018905,2]
[337362565,1725630638570,-1000.0,0.00018921,2]
[337362566,1725630638580,-1000.0,0.00018921,2]
[337362569,1725630638590,-1000.0,0.0001894,2]
[337362570,1725630638605,-1000.0,0.00018947,2]
[337362571,1725630638615,-1000.0,0.00018947,2]
[337362572,1725630638624,-300.0,0.00018952,2]
[337362573,1725630638634,-369.87386292,0.00018979,2]
[337362574,1725630638644,-1000.0,0.00018984,2]
[337362575,1725630638654,-1000.0,0.00018992,2]
[337362576,1725630638663,-1000.0,0.00018997,2]
[337362577,1725630638673,-1000.0,0.00019002,2]
[337362578,1725630638682,-1000.0,0.0001901,2]
[337362579,1725630638691,-1000.0,0.00019018,2]
[337362580,1725630638701,-1000.0,0.00019033,2]
[337362581,1725630638710,-1000.0,0.00019042,2]
[337362582,1725630638720,-1000.0,0.00019047,2]
[337362583,1725630638729,-1000.0,0.0001905,2]
[337362584,1725630638738,-1000.0,0.00019056,2]
[337362585,1725630638748,-1000.0,0.00019061,2]
[337362586,1725630638757,-1000.0,0.0001907,2]
[337362587,1725630638767,-1000.0,0.000191,19]
[337362588,1725630638776,-150.112233,0.000191,2]
[337362589,1725630638786,-150.112233,0.000191,2]
[337362590,1725630638795,-150.112233,0.000191,2]
[337362591,1725630638805,-150.112233,0.000191,2]
[337362592,1725630638815,-150.112233,0.000191,2]
[337362593,1725630638824,-150.112233,0.000191,2]
[337362594,1725630638833,-1000.0,0.00019105,2]
[337362595,1725630638843,-1000.0,0.00019118,2]
[337362596,1725630638859,-1000.0,0.00019122,2]
[337362597,1725630638869,-298894.921351,0.0001913,2]
[337362598,1725630638878,-8351.724012,0.0001913,2]
[337362599,1725630638887,-487.36352419,0.00019149,2]
[337362600,1725630638897,-170371.5554188,0.0001915,2]
[337362601,1725630638906,-151.0,0.0001915,2]
[337362602,1725630638916,-151.0,0.0001915,2]
[337362603,1725630638925,-865.203504,0.0001915,2]
[337362604,1725630638934,-865.203504,0.0001915,2]
[337362605,1725630638945,-151.0,0.0001915,2]
[337362606,1725630638954,-2025.087237,0.0001915,2]
[337362607,1725630638965,-2025.087237,0.0001915,2]
[337362608,1725630638975,-151.0,0.0001915,2]
[337362609,1725630638985,-151.0,0.0001915,2]
[337362610,1725630638994,-151.0,0.0001915,2]
[337362611,1725630639003,-5869.045063,0.0001915,2]
[337362612,1725630639013,-5869.045063,0.0001915,2]
[337362613,1725630639022,-345.178924,0.0001915,2]
[337362614,1725630639032,-470.721169,0.0001915,2]
[337362615,1725630639042,-345.178924,0.0001915,2]
[337362616,1725630639052,-637.495251,0.0001915,2]
[337362617,1725630639062,-470.721169,0.0001915,2]
[337362618,1725630639072,-637.495251,0.0001915,2]
[337362619,1725630639082,-1369.609796,0.0001915,2]
[337362620,1725630639091,-1369.609796,0.0001915,2]
[337362621,1725630639106,-151.0,0.0001915,2]
[337362622,1725630639115,-151.0,0.0001915,2]
[337362623,1725630639125,-151.0,0.0001915,2]
[337362624,1725630639135,-151.0,0.0001915,2]
[337362625,1725630639146,-4175.862006,0.00019167,2]
[337362626,1725630639155,-151.0,0.00019167,2]
[337362627,1725630639167,-151.0,0.00019167,2]
[337362628,1725630639176,-168.283394,0.00019167,2]
[337362629,1725630639187,-151.0,0.00019167,2]
[337362630,1725630639197,-168.283394,0.00019167,2]
[337362631,1725630639207,-151.0,0.00019167,2]
[337362632,1725630639216,-151.0,0.00019167,2]
[337362633,1725630639226,-151.0,0.00019167,2]
[337362634,1725630639236,-151.0,0.00019167,2]
[337362635,1725630639246,-151.0,0.00019167,2]
[337362636,1725630639255,-204.385737,0.00019167,2]
[337362637,1725630639265,-151.0,0.00019167,2]
[337362638,1725630639274,-878.358821,0.00019167,2]
[337362639,1725630639285,-878.358821,0.00019167,2]
[337362640,1725630639295,-151.0,0.00019167,2]
[337362641,1725630639304,-151.541004,0.00019167,2]
[337362642,1725630639313,-276.42687,0.00019167,2]
[337362643,1725630639324,-276.42687,0.00019167,2]
[337362644,1725630639335,-560.92191,0.00019167,2]
[337362645,1725630639351,-151.0,0.00019167,2]
[337362646,1725630639362,-221.067393,0.00019167,2]
[337362647,1725630639372,-1112.468715,0.00019167,2]